fUSD/lending_fUSD_20240903
["ID","MTS","AMOUNT","RATE_DAILY","PERIOD"]
[337034762,1725354631597,-240.16745117,0.00013461,2]
[337034763,1725354631608,-250.0,0.00013465,2]
[337034764,1725354631618,-9.43254883,0.00013465,2]
[337034765,1725354631630,-148.12745117,0.00013465,2]
[337034766,1725354631642,-300.0,0.00013476,2]
[337034767,1725354631651,-551.77314883,0.00013477,2]
[337034768,1725354631663,-1000.3932,0.00013477,2]
[337034769,1725354631679,-548.6778876,0.00013477,2]
[337034770,1725354631714,-544.02,0.00013477,2]
[337034771,1725354631728,-252.67249884,0.00013477,2]
[337034772,1725354631739,-696.77431602,0.00013477,2]
[337034773,1725354631751,-2670.40920195,0.00013477,2]
[337034774,1725354631762,-5599.02414876,0.00013477,2]
[337034775,1725354631773,-3576.97871244,0.00013477,2]
[337034776,1725354631785,-4826.7295626,0.00013477,2]
[337034777,1725354631799,-3632.54732296,0.00013477,2]
[337034778,1725354631811,-194.75826541,0.00013488,2]
[337034779,1725354631820,-1000.0,0.00013497,2]
[337034780,1725354631830,-1074.43,0.00013498,2]
[337034781,1725354631842,-159.6,0.0001351,2]
[337034782,1725354631851,-219.6,0.0001351,2]
[337034783,1725354631861,-250.0,0.00013516,2]
[337034784,1725354631870,-500.0,0.00013523,2]
[337034785,1725354631881,-196.09,0.00013523,2]
[337034786,1725354631891,-543.37,0.00013563,2]
[337034787,1725354631900,-653.41386539,0.00013566,2]
[337034788,1725354631922,-361.25088208,0.00013566,2]
[337034789,1725354631958,-657.30298068,0.00013566,2]
[337034790,1725354631970,-1174.01822911,0.00013566,2]
[337034791,1725354632002,-1099.07404274,0.00013566,2]
[337034792,1725354632012,-226.57,0.00013566,2]
[337034793,1725354632022,-285.02,0.00013566,2]
[337034794,1725354632032,-166.51,0.00013689,2]
[337034795,1725354632041,-174.04,0.00013929,2]
[337034796,1725354632051,-475.4,0.0001399,2]
[337034797,1725354632060,-200.0,0.00014055,2]
[337034798,1725354632070,-791.64,0.00014341,2]
[337034799,1725354632079,-791.64,0.00014341,2]
[337034800,1725354632089,-339.02,0.00014341,2]
[337034801,1725354632098,-150.0,0.00014499,2]
[337034802,1725354632107,-181.33036178,0.000145,7]
[337034806,1725354637591,-3160.19150616,0.000145,7]
[337034807,1725354637652,-484.5265281,0.000145,7]
[337034808,1725354637711,-275.85393769,0.000145,7]
[337034809,1725354637724,-4257.24347097,0.000145,7]
[337034810,1725354637736,-1652.8541953,0.000145,7]
[337034811,1725354637746,-280.45362251,0.00014656,2]
[337034812,1725354637755,-366.8539,0.000147,2]
[337034813,1725354637764,-420.0,0.00014772,2]
[337034814,1725354637775,-823.44300514,0.0001479,2]
[337034815,1725354637897,-140.42919486,0.0001479,2]
[337034816,1725354637906,-545.5327,0.0001479,2]
[337034817,1725354637919,-42921.50134367,0.000148,2]
[337034818,1725354637929,-150.0,0.000148,2]
[337034819,1725354637939,-5093.6124268,0.000148,3]
[337034820,1725354637949,-237.58648454,0.00014827,2]
[337034821,1725354637959,-237.58648454,0.00014839,2]
[337034822,1725354637968,-1144.0,0.00014846,2]
[337034823,1725354637977,-4255.998,0.00014846,2]
[337034824,1725354637986,-1185.876,0.00014847,2]
[337034825,1725354637995,-3854.892,0.00014847,2]
[337034826,1725354638005,-722.8196,0.0001485,2]
[337034827,1725354638017,-237.58648454,0.00014851,2]
[337034828,1725354638026,-237.58648454,0.00014863,2]
[337034829,1725354638036,-237.58648454,0.00014876,2]
[337034830,1725354638046,-500.0,0.00014879,2]
[337034831,1725354638057,-500.0,0.0001488,2]
[337034832,1725354638069,-618.89,0.0001488,3]
[337034833,1725354638079,-237.58648454,0.00014888,2]
[337034834,1725354638088,-946.3744,0.00014889,2]
[337034835,1725354638099,-20399.6072,0.00014889,2]
[337034836,1725354638108,-10128.6976,0.0001489,2]
[337034837,1725354638118,-34375.7245,0.0001489,2]
[337034838,1725354638129,-81969.7521,0.0001489,2]
[337034839,1725354638139,-1000.0,0.0001489,2]
[337034840,1725354638148,-316.0156951,0.0001489,2]
[337034841,1725354638160,-316.01569506,0.00014891,2]
[337034842,1725354638171,-316.01569506,0.00014893,2]
[337034843,1725354638180,-316.01569506,0.00014894,2]
[337034844,1725354638190,-316.01569506,0.00014896,2]
[337034845,1725354638201,-316.01569506,0.00014897,2]
[337034846,1725354638211,-316.01569506,0.00014899,2]
[337034847,1725354638220,-487.738573,0.000149,2]
[337034848,1725354638230,-801.464,0.000149,2]
[337034849,1725354638239,-1030.5125,0.000149,2]
[337034850,1725354638249,-155.85325521,0.000149,2]
[337034851,1725354638259,-237.58648454,0.000149,2]
[337034852,1725354638268,-316.01569506,0.000149,2]
[337034853,1725354638278,-7500.0,0.000149,2]
[337034854,1725354638287,-1641.4026928,0.000149,2]
[337034855,1725354638297,-500.54719968,0.00014973,2]
[337034856,1725354638308,-500.0,0.00014973,2]
[337034857,1725354638322,-8287.79272188,0.0001498,2]
[337034858,1725354638332,-4586.0840523,0.0001499,2]
[337034859,1725354638341,-150.56,0.0001499,2]
[337034860,1725354638350,-2299.2,0.0001499,2]
[337034861,1725354638360,-7643.4734205,0.0001499,2]
[337034862,1725354638369,-150.56,0.0001499,2]
[337034863,1725354638379,-150.56,0.0001499,2]
[337034864,1725354638390,-150.56,0.0001499,2]
[337034865,1725354638399,-500.0,0.00014997,2]
[337034866,1725354638409,-500.0,0.00014997,2]
[337034867,1725354638418,-500.0,0.00014997,2]
[337034868,1725354638428,-500.0,0.00014997,2]
[337034869,1725354638437,-588.31549017,0.00014997,2]
[337034870,1725354638446,-183.23314245,0.00014997,2]
[337034871,1725354638456,-415.87260932,0.00014997,2]
[337034872,1725354638465,-500.0,0.00014997,2]
[337034873,1725354638475,-23273.42610006,0.00014997,2]
[337034874,1725354638485,-150.0,0.00014998,2]
[337034875,1725354638494,-150.0,0.00014998,2]
[337034876,1725354638503,-150.0,0.00014998,2]
[337034877,1725354638513,-150.0,0.00014998,2]
[337034878,1725354638522,-150.0,0.00014998,2]
[337034879,1725354638535,-5512.7712171,0.00014998,2]
[337034880,1725354638545,-1661.6847003,0.00014998,2]
[337034881,1725354638555,-528.5537403,0.00014998,2]
[337034882,1725354638564,-2090.8920548,0.00014998,2]
[337034883,1725354638573,-5470.2702244,0.00014998,2]
[337034884,1725354638583,-66911.8468681,0.00014998,2]
[337034885,1725354638592,-1000.0,0.00014999,2]
[337034886,1725354638601,-1000.0,0.00014999,2]
[337034887,1725354638611,-1000.0,0.00014999,2]
[337034888,1725354638620,-1000.0,0.00014999,2]
[337034889,1725354638629,-1000.0,0.00014999,2]
[337034890,1725354638638,-1000.0,0.00014999,2]
[337034891,1725354638648,-668.0,0.00015,2]
[337034892,1725354638660,-260464.14928022,0.00015,2]
[337034893,1725354638669,-69663.13476203,0.00015,2]
[337034894,1725354638683,-417.51263758,0.00015,2]
[337034895,1725354638694,-492.40723222,0.00015,2]
[337034896,1725354638705,-716.72590102,0.00015,2]
[337034897,1725354638739,-5406.64754168,0.00015,2]
[337034898,1725354638749,-925.30673529,0.00015,2]
[337034899,1725354638760,-404.28989155,0.00015,2]
[337034904,1725354639575,-857.69234347,0.00015,2]
[337034905,1725354639586,-1209.54095137,0.00015,2]
[337034906,1725354639597,-469.092,0.00015,2]
[337034907,1725354639642,-3738.49741325,0.00015,2]
[337034908,1725354639654,-1181.8693022,0.00015,2]
[337034909,1725354639665,-23713.43801055,0.00015,2]
[337034910,1725354639677,-1399.79399091,0.00015,2]
[337034911,1725354639688,-863.3110572,0.00015,2]
[337034912,1725354639714,-288.54346394,0.00015,2]
[337034913,1725354639725,-312.60966571,0.00015,2]
[337034914,1725354639736,-88018.09762873,0.00015,2]
[337034915,1725354639747,-740.07,0.00015,2]
[337034916,1725354639758,-1883.92436493,0.00015,2]
[337034917,1725354639769,-573.37954002,0.00015,2]
[337034918,1725354639782,-1300631.4027497,0.00015,2]
[337034919,1725354639815,-90838.46353996,0.00015,2]
[337034920,1725354639826,-71206.53664946,0.00015,2]
[337034921,1725354639887,-265.1286,0.00015,2]
[337034922,1725354639898,-3729.54558157,0.00015,2]
[337034923,1725354639910,-635.20510333,0.00015,2]
[337034924,1725354639924,-688.15196471,0.00015,2]
[337034925,1725354639936,-10400.0,0.00015,2]
[337034926,1725354639959,-30734.90415776,0.00015,2]
[337034929,1725354642648,-602.0,0.00015,2]
[337034930,1725354642658,-6850.15383484,0.00015,2]
[337034931,1725354642670,-734.35182804,0.00015,2]
[337034932,1725354642682,-2654.64403753,0.00015,2]
[337034933,1725354642706,-9029.48,0.00015,2]
[337034934,1725354642819,-19921.70574928,0.00015,2]
[337034935,1725354642831,-449.242,0.00015,2]
[337034937,1725354643062,-44550.86405831,0.00015,2]
[337034940,1725354643076,-250.69,0.00015,2]
[337034942,1725354643090,-482.99415126,0.00015,2]
[337034944,1725354643102,-3926.88633819,0.00015,2]
[337034946,1725354643115,-1860.29152202,0.00015,2]
[337034949,1725354646721,-7895.18987708,0.00015,2]
[337034950,1725354646732,-2522.7804,0.00015,2]
[337034951,1725354646743,-4610.71360311,0.00015,2]
[337034952,1725354646754,-15183.09361482,0.00015,2]
[337034953,1725354646769,-1394.51005659,0.00015,2]
[337034954,1725354646780,-517.49928082,0.00015,2]
[337034955,1725354646791,-511.4223,0.00015,2]
[337034956,1725354646801,-1509.11451349,0.00015,2]
[337034957,1725354646815,-269.38241397,0.00015,2]
[337034958,1725354646825,-26766.2388339,0.00015,2]
[337034959,1725354646852,-1212.929094,0.00015,2]
[337034960,1725354646863,-1143.97892178,0.00015,2]
[337034961,1725354646875,-1891.09879631,0.00015,2]
[337034962,1725354646885,-77176.3203611,0.00015,2]
[337034963,1725354646896,-2580.28709736,0.00015,2]
[337034964,1725354646907,-1683.0,0.00015,2]
[337034965,1725354646919,-572.85,0.00015,2]
[337034966,1725354646933,-4822.53738327,0.00015,2]
[337034967,1725354646945,-910.07126,0.00015,2]
[337034976,1725354959313,159.05,0.00010959,2]
[337034981,1725355179275,452.63,0.00011518,2]
[337034982,1725355202024,550.0,0.00011,2]
[337034983,1725355508693,2103.24730276,0.00013,2]
[337034984,1725355535897,21278.05531702,9.5e-05,2]
[337034985,1725355537651,155.47,0.00010959,2]
[337034986,1725355631132,500.0,0.000123,2]
[337034990,1725355763367,497.76,0.00011356,2]
[337034991,1725355785827,-175.69822379,0.00013173,2]
[337034993,1725355785856,-150.0,0.00013272,2]
[337034995,1725355786071,-300.0,0.00013272,2]
[337034996,1725355786110,-715.91,0.00013273,2]
[337034997,1725355786140,-1154.45005815,0.00013273,2]
[337034998,1725355786275,-4013.88738884,0.00013273,2]
[337035006,1725355831913,-300.0,0.00013272,2]
[337035007,1725355831922,-150.0,0.00013272,2]
[337035008,1725355831931,-134.59550704,0.00013273,2]
[337035009,1725355831942,-315.40449296,0.00013273,2]
[337035013,1725355837794,-1345.38749778,0.00013273,2]
[337035014,1725355837854,-1767.1551001,0.00013273,2]
[337035015,1725355837866,-15169.11995513,0.00013273,2]
[337035016,1725355837876,-800.0,0.00013273,2]
[337035017,1725355837885,-250.0,0.00013273,2]
[337035018,1725355837896,-302.86,0.00013273,2]
[337035019,1725355837907,-269.93,0.00013274,2]
[337035020,1725355837918,-189.8,0.00013274,2]
[337035021,1725355837928,-777.44,0.00013276,2]
[337035022,1725355837936,-250.0,0.0001338,2]
[337035023,1725355837946,-726.22,0.00013387,2]
[337035024,1725355837955,-200.0,0.00013387,2]
[337035025,1725355837965,-157.56,0.00013415,2]
[337035026,1725355837974,-494.32,0.00013421,2]
[337035027,1725355837983,-250.0,0.00013421,2]
[337035028,1725355837993,-5348.55,0.00013426,2]
[337035029,1725355838002,-497.76,0.0001362,2]
[337035030,1725355838012,-499.99,0.00013781,2]
[337035031,1725355838021,-642.66,0.00013992,2]
[337035032,1725355838032,-642.66,0.00013996,2]
[337035033,1725355838042,-642.66,0.00014,2]
[337035034,1725355838053,-642.66,0.00014003,2]
[337035035,1725355838062,-642.66,0.00014007,2]
[337035036,1725355838071,-642.66,0.00014011,2]
[337035037,1725355838081,-642.66,0.00014014,2]
[337035038,1725355838090,-642.66,0.00014018,2]
[337035039,1725355838100,-642.66,0.00014022,2]
[337035040,1725355838110,-642.66,0.00014025,2]
[337035041,1725355838120,-642.66,0.00014029,2]
[337035042,1725355838130,-642.66,0.00014033,2]
[337035043,1725355838139,-642.66,0.00014036,2]
[337035044,1725355838148,-642.66,0.0001404,2]
[337035045,1725355838157,-642.66,0.00014044,2]
[337035046,1725355838167,-642.66,0.00014047,2]
[337035047,1725355838176,-163.05,0.00014049,2]
[337035048,1725355838186,-642.66,0.00014051,2]
[337035049,1725355838195,-642.66,0.00014055,2]
[337035050,1725355838204,-642.66,0.00014058,2]
[337035051,1725355838216,-642.66,0.00014062,2]
[337035052,1725355838232,-200.0,0.00014073,2]
[337035053,1725355838242,-23624.01730029,0.0001418,2]
[337035054,1725355838252,-173.26,0.00014215,2]
[337035055,1725355838262,-255.0,0.00014387,2]
[337035056,1725355838272,-421.94,0.00014441,2]
[337035057,1725355838281,-421.94,0.00014441,2]
[337035058,1725355838292,-791.64,0.00014441,2]
[337035059,1725355838301,-791.64,0.00014441,2]
[337035060,1725355838312,-1625.16,0.00014441,2]
[337035061,1725355838321,-791.64,0.00014541,2]
[337035062,1725355838331,-490.08,0.00014541,2]
[337035063,1725355838341,-421.94,0.00014541,2]
[337035064,1725355838350,-791.64,0.00014541,2]
[337035065,1725355838360,-791.64,0.00014541,2]
[337035066,1725355838369,-420.0,0.00014551,2]
[337035067,1725355838379,-6284.0,0.00014554,2]
[337035068,1725355838389,-357.27,0.00014578,2]
[337035069,1725355838399,-427.3,0.00014578,2]
[337035070,1725355838408,-427.3,0.00014578,2]
[337035071,1725355838418,-357.27,0.00014578,2]
[337035072,1725355838427,-150.0,0.00014578,2]
[337035073,1725355838437,-374.59,0.00014578,2]
[337035074,1725355838446,-150.0,0.00014578,2]
[337035075,1725355838456,-427.3,0.00014578,2]
[337035077,1725355838465,-356.85,0.00014578,2]
[337035078,1725355838474,-427.3,0.00014578,2]
[337035079,1725355838483,-390.21,0.00014578,2]
[337035080,1725355838493,-427.3,0.00014578,2]
[337035081,1725355838502,-427.27,0.00014578,2]
[337035082,1725355838511,-357.27,0.00014678,2]
[337035083,1725355838521,-427.3,0.00014678,2]
[337035084,1725355838531,-150.0,0.00014678,2]
[337035085,1725355838540,-301.12,0.00014678,2]
[337035086,1725355838549,-153.52,0.00014678,2]
[337035087,1725355838559,-350.58,0.00014678,2]
[337035088,1725355838568,-357.27,0.00014678,2]
[337035089,1725355838578,-150.0,0.00014678,2]
[337035090,1725355838587,-427.3,0.00014678,2]
[337035091,1725355838597,-150.0,0.00014678,2]
[337035092,1725355838608,-150.0,0.00014678,2]
[337035093,1725355838617,-150.0,0.00014678,2]
[337035094,1725355838628,-427.3,0.00014678,2]
[337035095,1725355838639,-357.27,0.00014678,2]
[337035096,1725355838648,-150.0,0.00014678,2]
[337035097,1725355838658,-150.0,0.00014678,2]
[337035098,1725355838672,-150.0,0.00014678,2]
[337035099,1725355838682,-3793.2196,0.0001469,2]
[337035100,1725355838691,-8116.0801,0.0001479,2]
[337035101,1725355838701,-40350.2668,0.0001479,2]
[337035102,1725355838710,-1871.82772,0.0001485,2]
[337035103,1725355838721,-388.79,0.0001489,2]
[337035104,1725355838731,-2138.02972407,0.00014899,2]
[337035105,1725355838741,-2138.02972407,0.00014899,2]
[337035106,1725355838750,-2138.02972407,0.000149,2]
[337035107,1725355838760,-1560.2075,0.000149,2]
[337035108,1725355838769,-1963.6775,0.000149,2]
[337035109,1725355838778,-857.04264823,0.000149,2]
[337035110,1725355838791,-324.33833276,0.000149,2]
[337035111,1725355838815,-362.78211077,0.000149,2]
[337035112,1725355838827,-396.57184107,0.000149,2]
[337035113,1725355838846,-197.29479124,0.000149,2]
[337035114,1725355838855,-1079.62136155,0.000149,2]
[337035115,1725355838865,-815.70646634,0.000149,2]
[337035116,1725355838877,-987.54270914,0.000149,2]
[337035117,1725355838888,-3727.73052774,0.000149,2]
[337035118,1725355838900,-470.65601327,0.000149,2]
[337035119,1725355838910,-800.0,0.00014932,2]
[337035120,1725355838919,-302.86,0.00014932,2]
[337035121,1725355838929,-12529.96623336,0.0001495,3]
[337035122,1725355838951,-485.28526725,0.0001495,3]
[337035123,1725355839125,-335.76750053,0.0001495,3]
[337035124,1725355839146,-1731.69774806,0.0001495,3]
[337035126,1725355840325,-3597.1298148,0.0001495,3]
[337035127,1725355840335,-10867.40808109,0.0001496,2]
[337035128,1725355840344,-500.0,0.00014973,2]
[337035130,1725355840353,-11673.1575688,0.0001499,2]
[337035132,1725355840363,-150.86,0.0001499,2]
[337035134,1725355840374,-213.95126716,0.00014997,2]
[337035136,1725355840384,-150.0,0.00014998,2]
[337035138,1725355840393,-150.0,0.00014998,2]
[337035140,1725355840403,-150.0,0.00014998,2]
[337035142,1725355840412,-150.0,0.00014998,2]
[337035144,1725355840421,-150.0,0.00014998,2]
[337035146,1725355840431,-1000.0,0.00014999,2]
[337035148,1725355840440,-1000.0,0.00014999,2]
[337035150,1725355840450,-1000.0,0.00014999,2]
[337035152,1725355840459,-1000.0,0.00014999,2]
[337035154,1725355840468,-1000.0,0.00014999,2]
[337035156,1725355840478,-1000.0,0.00014999,2]
[337035158,1725355840487,-500.0,0.00014999,2]
[337035160,1725355840496,-500.0,0.00014999,2]
[337035162,1725355840506,-500.0,0.00014999,2]
[337035164,1725355840515,-500.0,0.00014999,2]
[337035166,1725355840524,-500.0,0.00014999,2]
[337035168,1725355840534,-506.44135122,0.00014999,2]
[337035170,1725355840543,-500.0,0.00014999,2]
[337035172,1725355840552,-500.0,0.00014999,2]
[337035174,1725355840562,-500.0,0.00014999,2]
[337035176,1725355840571,-500.0,0.00014999,2]
[337035178,1725355840581,-500.0,0.00014999,2]
[337035180,1725355840591,-436.52748263,0.00014999,2]
[337035182,1725355840600,-609.0,0.00015,2]
[337035183,1725355840610,-155232.07464011,0.00015,2]
[337035185,1725355840619,-16207.45763338,0.00015,2]
[337035262,1725355845943,-563.62525067,0.00015,2]
[337035263,1725355845955,-308.52858885,0.00015,2]
[337035264,1725355846059,-1620.90074255,0.00015,2]
[337035267,1725356048930,203.0,0.0001308,2]
[337035268,1725356131178,156.86,0.00010959,2]
[337035269,1725356265781,470.87,0.00011622,2]
[337035271,1725356616592,158.43,0.00010959,2]
[337035272,1725356840832,150.0,0.00011714,2]
[337035273,1725356840856,150.0,0.00011714,2]
[337035274,1725356840878,150.0,0.00011714,2]
[337035275,1725356840900,44.66,0.00011714,2]
[337035276,1725356851118,276.0,0.000103,5]
[337035277,1725356916062,150.0,0.00012999,2]
[337035278,1725356916083,150.0,0.00012999,2]
[337035279,1725356916104,150.0,0.00012999,2]
[337035280,1725356916124,150.0,0.00012999,2]
[337035281,1725356916145,150.0,0.00012999,2]
[337035282,1725356916166,150.0,0.00012999,2]
[337035283,1725356916186,150.0,0.00012999,2]
[337035284,1725356916208,8950.0,0.00012999,2]
[337035285,1725356954598,211.31751556,0.00012999,2]
[337035286,1725356954621,291.68248444,0.00012999,2]
[337035287,1725357004544,150.0,0.00011,2]
[337035288,1725357004565,150.0,0.00011,2]
[337035289,1725357004588,150.0,0.00011,2]
[337035290,1725357004609,100.0,0.00011,2]
[337035299,1725357032249,-200.0,0.00013287,2]
[337035300,1725357032259,-170.75,0.00013387,2]
[337035301,1725357032268,-134.68097376,0.00013387,2]
[337035302,1725357032280,-385.31902624,0.00013387,2]
[337035303,1725357032290,-185.67,0.00013387,2]
[337035304,1725357032299,-203.0,0.0001344,2]
[337035305,1725357032308,-250.0,0.00013648,2]
[337035306,1725357032317,-163.07,0.00013677,2]
[337035307,1725357032326,-8311.00845989,0.00013682,2]
[337035308,1725357032455,-1223.20287549,0.00013682,2]
[337035309,1725357032471,-4918.88227622,0.00013682,2]
[337035310,1725357038181,-3684.00718386,0.00013682,2]
[337035311,1725357038240,-942.82658383,0.00013682,2]
[337035312,1725357038298,-2993.73804243,0.00013682,2]
[337035353,1725357040141,-543.065889,0.00013682,2]
[337035365,1725357043829,-1283.26868928,0.00013682,2]
[337035366,1725357043838,-150.0,0.00013699,2]
[337035367,1725357043848,-250.0,0.00013733,2]
[337035368,1725357043858,-500.0,0.00013741,2]
[337035369,1725357043867,-580.06,0.0001381,2]
[337035370,1725357043876,-203.0,0.0001381,2]
[337035371,1725357043886,-480.0,0.00013835,2]
[337035372,1725357043896,-999.99,0.00013835,2]
[337035373,1725357043906,-200.21,0.00013851,2]
[337035374,1725357043917,-499.99,0.00013879,2]
[337035375,1725357043927,-681.24,0.0001392,2]
[337035376,1725357043937,-494.66,0.00013978,2]
[337035377,1725357043946,-250.93570819,0.00014,2]
[337035378,1725357043957,-203.0,0.0001417,2]
[337035379,1725357043967,-203.0,0.0001453,2]
[337035380,1725357043976,-421.85,0.00014641,2]
[337035381,1725357043986,-248.0,0.00014775,2]
[337035382,1725357043996,-151.75404503,0.00014778,2]
[337035383,1725357044008,-381.71595497,0.00014778,2]
[337035384,1725357044018,-301.38,0.00014778,2]
[337035385,1725357044028,-7054.57479863,0.00014798,2]
[337035387,1725357046051,-891.91200137,0.00014798,2]
[337035388,1725357046061,-701.65799863,0.0001485,2]
[337035389,1725357068533,447.0,0.000103,5]
[337035390,1725357077490,20000.0,0.00013,75]
[337035391,1725357110293,150.0,0.00010959,2]
[337035392,1725357110315,13.79,0.00010959,2]
[337035394,1725357251003,150.0,0.000123,2]
[337035395,1725357251024,150.0,0.000123,2]
[337035396,1725357251046,150.0,0.000123,2]
[337035397,1725357251066,150.0,0.000123,2]
[337035398,1725357251087,150.0,0.000123,2]
[337035399,1725357251108,50.0,0.000123,2]
[337035400,1725357341149,150.0,0.00012142,2]
[337035401,1725357341171,150.0,0.00012142,2]
[337035402,1725357341193,150.0,0.00012142,2]
[337035403,1725357341215,57.99,0.00012142,2]
[337035404,1725357610749,450.0,0.000123,2]
[337035405,1725357926723,528.32,0.00011999,2]
[337035414,1725358232199,-716.41287549,0.00013717,2]
[337035415,1725358232209,-98.58437113,0.00013784,2]
[337035416,1725358232306,-151.41562887,0.00013784,2]
[337035417,1725358232316,-148.58437113,0.00013817,2]
[337035418,1725358232327,-37.08562887,0.00013817,2]
[337035419,1725358232336,-200.0,0.00013817,2]
[337035420,1725358232346,-245.69022857,0.00013859,3]
[337035421,1725358232361,-248.82977143,0.00013859,3]
[337035422,1725358232371,-714.46336982,0.00013859,2]
[337035423,1725358232386,-59.27789165,0.00013859,2]
[337035424,1725358232397,-773.74126147,0.00013859,2]
[337035425,1725358232407,-127.90246047,0.00013859,2]
[337035426,1725358232471,-645.838801,0.00013859,2]
[337035427,1725358232481,-234.48162456,0.00013866,2]
[337035428,1725358232504,-1196.32788,0.00013866,2]
[337035429,1725358232515,-66.75159258,0.00013866,2]
[337035430,1725358232524,-150.0,0.00013868,2]
[337035431,1725358232534,-300.0,0.00013868,2]
[337035432,1725358232545,-500.0,0.00013868,2]
[337035433,1725358232554,-318.52233733,0.00013868,2]
[337035434,1725358232566,-181.47766267,0.00013868,2]
[337035435,1725358232576,-500.0,0.00013868,2]
[337035436,1725358232585,-1025.50233733,0.00013869,2]
[337035440,1725358238236,-500.0,0.00013868,2]
[337035441,1725358238248,-320.22297129,0.00013868,2]
[337035442,1725358238257,-441.92501838,0.00013869,2]
[337035443,1725358238541,-394.12782113,0.00013869,2]
[337035444,1725358238553,-564.662132,0.00013869,2]
[337035445,1725358238565,-448.7075297,0.00013869,2]
[337035446,1725358238576,-4440.99164458,0.00013869,2]
[337035447,1725358238588,-504.46416423,0.00013869,2]
[337035448,1725358238599,-1470.87908501,0.00013869,2]
[337035449,1725358238652,-21177.35565627,0.00013869,2]
[337035450,1725358238663,-9571.39362899,0.00013869,2]
[337035451,1725358238692,-585.41820824,0.00013869,2]
[337035452,1725358238702,-1595.48310882,0.00013869,2]
[337035454,1725358238713,-8928.78405659,0.00013869,2]
[337035456,1725358238727,-3006.44051846,0.00013869,2]
[337035459,1725358238738,-7442.804616,0.00013869,2]
[337035461,1725358238748,-322.01752255,0.00013869,2]
[337035463,1725358238758,-2107.96685003,0.00013869,2]
[337035492,1725358240240,-1335.0,0.00013869,2]
[337035493,1725358240335,-278.90148228,0.00013869,2]
[337035494,1725358240346,-3033.07094716,0.00013869,2]
[337035495,1725358240357,-311.6,0.00013869,2]
[337035496,1725358240369,-288.82,0.00013869,2]
[337035497,1725358240435,-695.95800116,0.00013869,2]
[337035498,1725358240511,-1524.786964,0.00013869,2]
[337035499,1725358240538,-30878.38926838,0.00013869,2]
[337035500,1725358240570,-2495.58714316,0.00013869,2]
[337035501,1725358240581,-1193.8832424,0.00013869,2]
[337035502,1725358240592,-324.69396119,0.00013869,2]
[337035503,1725358240604,-116911.89390385,0.00013869,2]
[337035507,1725358243304,-257.80255236,0.00013868,2]
[337035508,1725358243314,-571.01377164,0.00013869,2]
[337035509,1725358243325,-566.35561271,0.00013869,2]
[337035510,1725358243337,-37053.38602905,0.00013869,2]
[337035511,1725358243347,-564368.00541341,0.00013869,2]
[337035512,1725358243801,-38453.041751,0.00013869,2]
[337035513,1725358243812,-12732.91714098,0.00013869,2]
[337035514,1725358243823,-33717.400356,0.00013869,2]
[337035515,1725358243834,-16890.90505468,0.00013869,2]
[337035516,1725358243866,-473.25526323,0.00013869,2]
[337035521,1725358246324,-612.34305062,0.00013869,2]
[337035522,1725358246336,-5852.2,0.00013869,2]
[337035523,1725358246347,-432.05724792,0.00013869,2]
[337035524,1725358246358,-1171.72,0.00013869,2]
[337035525,1725358246369,-441.46,0.00013869,2]
[337035526,1725358246447,-8499.85506002,0.00013869,2]
[337035527,1725358246458,-16288.40638518,0.00013869,2]